bitfinex-derivatives/quotes_ETHF0:USTF0_20251211
["timestamp","ask_amount","ask_price","bid_price","bid_amount"]
[1765451068625,1.40718252,3194.8,3194.7,2.75890997]
[1765451070630,1.40718252,3194.8,3194.7,0.85829]
[1765451070832,1.40718252,3194.8,3194.7,0.15649]
[1765451071128,1.40718252,3194.8,3194.7,0.89959]
[1765451071429,1.40718252,3194.8,3194.7,0.15649]
[1765451071826,1.40718252,3194.8,3194.7,0.89959]
[1765451075636,0.70388252,3194.8,3194.7,1.64639]
[1765451076028,1.40728252,3194.8,3194.7,1.64639]
[1765451078238,0.00388252,3194.8,3194.7,1.64639]
[1765451080639,0.70388252,3194.8,3194.7,1.64639]
[1765451081341,0.00388252,3194.8,3194.7,1.64639]
[1765451085539,2.01440991,3195.0,3194.9,1.64638]
[1765451085834,1.28717832,3195.0,3194.9,2.7667226]
[1765451086038,4.03e-06,3195.0,3194.9,2.7667226]
[1765451086548,0.0023878,3195.0,3194.9,2.7667226]
[1765451087746,0.0023878,3195.0,3194.9,1.64638]
[1765451087940,0.0023878,3195.0,3194.9,2.7667226]
[1765451089248,0.0023878,3195.0,3194.9,8.38165517]
[1765451090148,0.0023878,3195.0,3194.9,2.7667226]
[1765451094447,0.0023878,3195.0,3194.9,6.10723157]
[1765451096445,0.0023878,3195.0,3194.9,12.10723157]
[1765451097051,1.6632,3195.3,3195.2,1.64637]
[1765451097242,1.6632,3195.3,3195.2,5.9745126]
[1765451097442,3.2078,3195.9,3195.8,1.64634]
[1765451097647,3.9078,3195.9,3195.8,1.64634]
[1765451097949,4.61409864,3195.9,3195.8,1.64939223]
[1765451100051,3.91069864,3195.9,3195.8,1.64939223]
[1765451100252,3.21069864,3195.9,3195.8,1.64939223]
[1765451100460,0.00289864,3195.9,3195.8,4.85719223]
[1765451100651,0.00289864,3195.9,3195.8,8.37193985]
[1765451101955,0.00289864,3195.9,3195.8,20.70393985]
[1765451104255,1.73513267,3196.2,3196.1,1.59812]
[1765451104460,1.41511267,3196.2,3196.1,2.7184626]
[1765451104662,4.6431,3196.8,3196.7,0.87929]
[1765451105261,4.64566231,3196.8,3196.7,0.87929]
[1765451105662,3.21036231,3196.8,3196.7,1.59809]
[1765451105855,3.92346231,3196.8,3196.7,1.59809]
[1765451106052,4.64566231,3196.8,3196.7,1.59809]
[1765451106456,3.92346231,3196.8,3196.7,1.59809]
[1765451106652,0.00256231,3196.8,3196.7,1.59809]
[1765451106964,0.00256231,3196.8,3196.7,4.80589]
[1765451109160,1.99479403,3197.1,3196.7,5.9262326]
[1765451109368,3.2078,3197.7,3197.6,1.59805]
[1765451109567,2.89463,3197.7,3197.6,2.7183926]
[1765451109760,3.9209,3198.1,3198.0,1.8766]
[1765451109964,4.6431,3198.1,3198.0,1.8766]
[1765451110466,4.64622135,3198.1,3198.0,1.8766]
[1765451110667,4.64622135,3198.1,3198.0,2.03293]
[1765451110966,3.92402135,3198.1,3198.0,2.03293]
[1765451111362,0.71622135,3198.1,3198.0,2.27614572]
[1765451111668,0.00312135,3198.1,3198.0,3.39648832]
[1765451113067,2.94299403,3198.4,3198.3,0.87922]
[1765451113564,2.94299403,3198.4,3198.3,0.15632]
[1765451113969,2.94696673,3198.4,3198.3,0.15971545]
[1765451114669,1.51166673,3198.4,3198.3,1.60141545]
[1765451114864,1.51166673,3198.4,3198.3,2.72175805]
[1765451115069,0.00866673,3198.4,3198.3,2.72175805]
[1765451115262,0.72176673,3198.4,3198.3,2.72175805]
[1765451115867,0.00866673,3198.4,3198.3,2.72175805]
[1765451116170,0.00866673,3198.4,3198.3,1.60141545]
[1765451116866,0.72176673,3198.4,3198.3,1.60141545]
[1765451117265,0.00866673,3198.4,3198.3,1.60141545]
[1765451120965,6.73e-06,3198.4,3198.3,1.60141545]
[1765451121669,0.80120673,3198.4,3198.3,1.60141545]
[1765451121970,1.56150673,3198.4,3198.3,0.88261545]
[1765451122270,1.56150673,3198.4,3198.3,0.15971545]
[1765451122465,2.68184933,3198.4,3198.3,0.15971545]
[1765451122666,1.56150673,3198.4,3198.3,0.15971545]
[1765451123963,1.5459,3197.8,3197.7,0.00469403]
[1765451124569,1.5459,3197.8,3197.7,0.16103403]
[1765451124972,1.5459,3197.8,3197.7,0.16350139]
[1765451126079,8.6662426,3197.8,3197.7,0.16350139]
[1765451126278,8.6662426,3197.8,3196.7,3.2078]
[1765451126279,1.5459,3196.8,3196.7,3.9706]
[1765451126778,1.5459,3196.8,3196.7,1.5558]
[1765451127177,1.5459,3196.8,3196.7,0.76588697]
[1765451127376,1.5459,3196.8,3196.7,1.81096072]
[1765451127577,1.5459,3196.8,3196.7,1.96735072]
[1765451127980,1.5459,3196.8,3196.7,1.71527697]
[1765451128174,1.5459,3196.8,3196.7,1.95879697]
[1765451128377,1.5459,3196.8,3196.7,1.71527697]
[1765451128776,1.5459,3196.8,3196.7,1.96278706]
[1765451129178,1.5459,3196.8,3196.7,1.71527697]
[1765451129377,1.5459,3196.8,3196.7,1.96306138]
[1765451129781,1.5459,3196.8,3196.7,1.71527697]
[1765451130575,0.00469403,3197.1,3197.0,1.1895]
[1765451130780,1.50189403,3197.1,3197.0,1.1895]
[1765451130983,1.4972,3196.8,3196.7,1.66907697]
[1765451131179,1.50189403,3197.1,3197.0,2.09268]
[1765451131384,1.50189403,3197.1,3197.0,1.33488]
[1765451131781,1.50189403,3197.1,3197.0,0.58308]
[1765451132180,1.50189403,3197.1,3197.0,1.33488]
[1765451132380,0.00469403,3197.1,3197.0,2.09268]
[1765451132782,0.78979403,3197.1,3197.0,3.23985947]
[1765451132981,0.00469403,3197.1,3197.0,3.23985947]
[1765451133874,0.78979403,3197.1,3197.0,3.23985947]
[1765451134884,1.50189403,3197.1,3197.0,3.23985947]
[1765451137286,0.78979403,3197.1,3197.0,3.23985947]
[1765451137884,1.50189403,3197.1,3197.0,3.23985947]
[1765451138691,1.50189403,3197.1,3197.0,2.09268]
[1765451138985,1.50189403,3197.1,3197.0,0.15638]
[1765451140887,1.50189403,3197.1,3197.0,2.09268]
[1765451141389,0.78979403,3197.1,3197.0,2.09268]
[1765451141889,0.78979403,3197.1,3197.0,3.23985947]
[1765451142091,0.00469403,3197.1,3197.0,2.09268]
[1765451142386,0.78979403,3197.1,3197.0,2.09268]
[1765451143390,0.00469403,3197.1,3197.0,2.09268]
[1765451144487,0.78979403,3197.1,3197.0,2.09268]
[1765451144687,0.00469403,3197.1,3197.0,2.09268]
[1765451146084,0.78979403,3197.1,3197.0,2.09268]
[1765451149495,0.00469403,3197.1,3197.0,2.09268]
[1765451149694,0.00469403,3197.1,3197.0,5.99395467]
[1765451150494,0.00469403,3197.1,3197.0,2.09268]
[1765451151087,1.50189403,3197.1,3197.0,2.09268]
[1765451151294,1.50189403,3197.1,3197.0,5.25232283]
[1765451151591,1.50189403,3197.1,3197.0,6.01012283]
[1765451151788,0.78979403,3197.1,3197.0,6.01012283]
[1765451152287,0.78979403,3197.1,3197.0,2.09268]
[1765451152894,1.50189403,3197.1,3197.0,1.33488]
[1765451153095,1.50189403,3197.1,3197.0,0.58308]
[1765451153599,1.50189403,3197.1,3197.0,1.33488]
[1765451153903,0.00469403,3197.1,3197.0,2.09268]
[1765451157301,0.00469403,3197.1,3197.0,3.23985947]
[1765451159203,0.00469403,3197.1,3197.0,8.84656738]
[1765451159795,0.72679403,3197.1,3197.0,2.09268]
[1765451160196,0.72679403,3197.1,3197.0,7.69953179]
[1765451160197,1.44139403,3197.1,3197.0,7.69953179]
[1765451160795,0.72679403,3197.1,3197.0,7.69953179]
[1765451160995,0.72679403,3197.1,3197.0,2.09268]
[1765451161699,1.44139403,3197.1,3197.0,2.09268]
[1765451161996,1.44139403,3197.1,3197.0,2.05998]
[1765451162996,0.72679403,3197.1,3197.0,2.05998]
[1765451164200,0.00469403,3197.1,3197.0,3.20715947]
[1765451164403,2.0875,3197.3,3197.2,1.58597]
[1765451164600,2.0875,3197.3,3197.2,2.73314947]
[1765451165601,2.8096,3197.3,3197.2,7.19101327]
[1765451166708,3.5242,3197.3,3197.2,7.19101327]
[1765451167205,3.5242,3197.3,3197.2,1.58597]
[1765451167708,2.8096,3197.3,3197.2,1.58597]
[1765451168009,3.5242,3197.3,3197.2,1.58597]
[1765451168204,3.5242,3197.3,3197.2,0.86087]
[1765451168406,3.5242,3197.3,3197.2,0.15637]
[1765451168803,3.5242,3197.3,3197.2,0.86087]
[1765451169207,3.5242,3197.3,3197.2,0.15637]
[1765451171906,4.67137947,3197.3,3197.2,0.15637]
[1765451173910,3.5242,3197.3,3197.2,0.15637]
[1765451175613,3.5242,3197.3,3197.2,1.59547]
[1765451175812,2.8096,3197.3,3197.2,2.74264947]
[1765451176215,2.0875,3197.3,3197.2,2.74264947]
[1765451177816,2.0875,3197.3,3197.2,8.34769274]
[1765451183118,3.2078,3197.9,3197.2,8.34769274]
[1765451183325,1.1471862,3198.4,3198.2,1.59542]
[1765451183326,4.6417,3198.3,3198.2,1.59542]
[1765451183517,4.6417,3198.3,3198.2,2.74259947]
[1765451183717,3.2078,3198.3,3198.2,2.74259947]
[1765451184114,4.6417,3198.3,3198.2,0.15632]
[1765451184319,10.6417,3198.3,3198.2,0.15632]
[1765451185427,4.6417,3198.3,3198.2,0.15632]
[1765451187126,6.73e-06,3198.4,3198.3,0.15631]
[1765451187331,1.43390673,3198.4,3198.3,0.90041]
[1765451189533,1.43390673,3198.4,3198.3,2.04758947]
[1765451190538,1.43390673,3198.4,3198.3,0.15631]
[1765451197143,2.55163031,3198.4,3198.3,0.15631]
[1765451197541,1.43390673,3198.4,3198.3,0.15631]
[1765451201243,0.71630673,3198.4,3198.3,1.57371]
[1765451201438,1.41180673,3198.4,3198.3,1.57371]
[1765451201844,1.41180673,3198.4,3198.3,5.48475737]
[1765451202350,0.71630673,3198.4,3198.3,5.48475737]
[1765451202740,6.73e-06,3198.4,3198.3,4.06735737]
[1765451202948,6.73e-06,3198.4,3198.3,0.15631]
[1765451207350,6.73e-06,3198.4,3198.3,1.27403358]
[1765451208850,1.43960673,3198.4,3198.3,2.69143358]
[1765451209554,1.43960673,3198.4,3198.3,1.57371]
[1765451210355,6.73e-06,3198.4,3198.3,0.15631]
[1765451211755,0.74410673,3198.4,3198.3,1.57371]
[1765451212750,0.74410673,3198.4,3198.3,2.69143358]
[1765451212954,6.73e-06,3198.4,3198.3,1.27403358]
[1765451215158,1.43960673,3198.4,3198.3,2.69143358]
[1765451215452,1.43960673,3198.4,3198.3,0.87651]
[1765451215758,1.43960673,3198.4,3198.3,1.57371]
[1765451218659,0.74410673,3198.4,3198.3,1.57371]
[1765451218864,6.73e-06,3198.4,3198.3,0.15631]
[1765451219051,1.43770673,3198.4,3198.3,0.87961]
[1765451219459,1.43770673,3198.4,3198.3,1.62661]
[1765451220961,1.43770673,3198.4,3198.3,0.87961]
[1765451221361,1.43770673,3198.4,3198.3,1.62661]
[1765451221754,1.43770673,3198.4,3198.3,1.27403358]
[1765451221755,6.73e-06,3198.4,3198.3,1.27403358]
[1765451222260,2.3013,3198.6,3198.5,2.03661]
[1765451222457,3.0206,3198.6,3198.5,10.43016052]
[1765451222657,1.8549,3199.0,3198.9,0.87959]
[1765451222854,3.9262,3199.1,3199.0,1.62658]
[1765451223059,3.2078,3199.1,3199.0,2.03658]
[1765451223259,1.5476,3199.5,3199.4,0.15626]
[1765451223462,1.55023242,3199.5,3199.4,0.15626]
[1765451225760,1.55023242,3199.5,3199.4,0.87956]
[1765451226363,1.55023242,3199.5,3199.4,0.15626]
[1765451226766,1.4377,3199.2,3199.1,3.91446964]
[1765451226963,4.6455,3199.2,3199.1,3.91446964]
[1765451227160,4.6455,3199.2,3199.1,4.79404964]
[1765451227464,4.6455,3199.2,3199.1,1.62658]
[1765451228063,1.81670242,3199.8,3199.7,0.15625]
[1765451228360,3.2078,3200.9,3200.4,0.15621]
[1765451228670,1.8549,3200.5,3200.4,4.48173358]
[1765451229062,1.85834536,3200.5,3200.4,4.48173358]
[1765451229265,1.85834536,3200.5,3200.4,3.47851]
[1765451229462,1.85834536,3200.5,3200.4,3.59301]
[1765451229666,0.00344536,3200.5,3200.4,3.59301]
[1765451229965,0.00344536,3200.5,3200.4,4.71073358]
[1765451230161,0.4172,3201.0,3200.9,0.35899]
[1765451230466,0.4172,3201.0,3200.9,4.68451358]
[1765451231159,1.9033,3201.3,3201.2,0.1842]
[1765451231464,3.34428242,3201.3,3201.2,1.30192358]
[1765451231664,3.34428242,3201.3,3201.2,1.20982358]
[1765451231858,3.34428242,3201.3,3201.2,0.0921]
[1765451232461,3.34428242,3201.3,3201.2,0.15617]
[1765451234562,1.44098242,3201.3,3201.2,0.15617]
[1765451236764,2.3951,3201.0,3200.9,3.2078]
[1765451236965,1.8428,3200.6,3200.5,0.15621]
[1765451237366,1.8428,3200.6,3200.5,1.03681]
[1765451238070,1.8428,3200.6,3200.5,0.15621]
[1765451239771,5.0506,3200.6,3200.5,0.15621]
[1765451243170,4.0772,3200.9,3200.8,1.8411]
[1765451243568,1.8428,3200.9,3200.8,1.8411]
[1765451244175,1.8428,3200.9,3200.8,0.8806]
[1765451244572,1.8428,3200.9,3200.8,1.03679]
[1765451245570,1.8428,3200.9,3200.8,0.15619]
[1765451249781,5.0506,3200.9,3200.8,0.15619]
[1765451250879,5.1598,3200.9,3200.8,0.15619]
[1765451251076,3.2078,3200.9,3200.8,2.16879]
[1765451251377,2.067,3200.9,3200.8,2.16879]
[1765451251586,3.7499,3201.2,3201.1,2.16878]
[1765451251881,3.7499,3201.2,3201.1,0.15618]
[1765451252075,2.067,3201.2,3201.1,0.15618]
[1765451252875,2.067,3201.2,3201.1,1.12788]
[1765451253883,2.067,3201.2,3201.1,2.16878]
[1765451254084,2.067,3201.2,3201.1,0.15618]
[1765451254287,2.067,3201.2,3201.1,2.16878]
[1765451254688,2.067,3201.2,3201.1,1.12788]
[1765451255091,2.067,3201.2,3201.1,0.15618]
[1765451255683,2.067,3201.2,3201.1,1.12788]
[1765451257191,2.067,3201.2,3201.1,0.15618]
[1765451264695,2.067,3200.7,3200.6,3.88903701]
[1765451264882,5.2748,3200.7,3200.6,3.88903701]
[1765451265088,2.067,3200.6,3200.5,4.04524701]
[1765451265285,2.067,3200.6,3200.5,5.01694701]
[1765451265494,2.067,3200.6,3200.5,1.12791]
[1765451265895,2.067,3200.6,3200.5,2.16881]
[1765451266097,2.067,3200.6,3200.5,0.15621]
[1765451266698,2.067,3200.6,3200.5,1.12791]
[1765451268295,3.21139613,3200.6,3200.5,4.057332]
[1765451268493,1.14439613,3200.6,3200.1,0.00469403]
[1765451268694,4.35219613,3200.2,3200.1,0.00469403]
[1765451281112,4.56159613,3200.2,3200.1,0.16092403]
[1765451281312,3.3125,3200.2,3200.1,2.39822403]
[1765451281614,3.2078,3200.2,3200.1,2.39822403]
[1765451281810,3.3125,3200.2,3200.1,2.39822403]
[1765451282012,3.2078,3200.2,3200.1,2.39822403]
[1765451282818,4.53819613,3200.2,3200.1,0.16092403]
[1765451283115,4.53819613,3200.2,3200.1,1.31502403]
[1765451283716,4.53819613,3200.2,3200.1,0.16092403]
[1765451286825,0.0702,3199.8,3199.7,3.89498347]
[1765451287015,4.42239613,3199.8,3199.7,3.72530764]
[1765451287216,4.42239613,3199.8,3199.2,0.15627]
[1765451287217,0.0702,3199.3,3199.2,0.15627]
[1765451287418,3.278,3199.3,3199.2,0.15627]
[1765451288121,4.42239613,3199.3,3199.2,0.15627]
[1765451288723,3.278,3199.3,3199.2,0.15627]
[1765451290418,4.92850235,3199.3,3199.2,0.15627]
[1765451293322,0.0376,3199.1,3199.0,0.00280072]
[1765451293727,3.7296,3199.1,3199.0,0.00280072]
[1765451294123,3.692,3199.1,3198.6,0.1563]
[1765451294422,3.2078,3198.7,3198.6,0.1563]
[1765451295217,3.21156489,3198.7,3198.6,0.16034926]
[1765451296027,3.21156489,3198.7,3198.6,1.31444926]
[1765451296230,3.21156489,3198.7,3198.6,0.16034926]
[1765451296630,3.21156489,3198.7,3198.6,1.31444926]
[1765451298531,3.21156489,3198.7,3198.6,0.16034926]
[1765451301228,0.00376489,3198.7,3198.6,0.16034926]
[1765451301632,3.21156489,3198.7,3198.6,2.39534926]
[1765451301822,3.21156489,3198.7,3198.6,0.16034926]
[1765451308137,6.90356489,3198.7,3198.3,0.00468647]
[1765451308339,1.65050235,3198.4,3198.3,0.00468647]
[1765451308730,1.14717115,3198.4,3198.3,0.00468647]
[1765451309133,1.14717115,3198.4,3198.3,0.0076669]
[1765451310038,5.9863423,3198.4,3197.1,3.89613908]
[1765451310339,4.35497115,3197.6,3197.5,0.82965]
[1765451310927,4.35497115,3197.6,3197.5,0.83342794]
[1765451311333,4.35497115,3197.6,3197.5,0.16012794]
[1765451316235,6.38637115,3197.6,3197.5,0.16012794]
[1765451316741,6.35833359,3197.6,3197.2,0.00468647]
[1765451316933,1.11913359,3197.3,3197.2,0.00468647]
[1765451317639,1.11913359,3197.3,3197.2,0.00779599]
[1765451319540,4.32693359,3197.3,3197.2,0.00779599]
[1765451320342,1.11913359,3197.3,3197.2,0.00779599]
[1765451320545,4.32693359,3197.3,3197.2,0.00779599]
[1765451323746,4.32693359,3197.3,3197.1,0.15637]
[1765451323945,3.692,3197.2,3196.5,1.7337]
[1765451324244,4.32693359,3196.6,3196.5,0.8136]
[1765451324747,4.32693359,3196.6,3196.5,0.81656946]
[1765451325239,4.32693359,3196.6,3196.5,2.90246946]
[1765451326145,1.11913359,3196.6,3196.5,2.90246946]
[1765451326345,4.32693359,3196.6,3196.5,2.90246946]
[1765451327046,4.32693359,3196.6,3196.5,1.89306946]
[1765451327841,4.32693359,3196.6,3196.5,0.81656946]
[1765451329148,4.32693359,3196.6,3196.5,1.89306946]
[1765451329948,4.32693359,3196.6,3196.5,2.90246946]
[1765451334850,4.32693359,3196.6,3196.5,1.89306946]
[1765451336651,6.20603359,3196.6,3196.5,1.89306946]
[1765451337955,2.99823359,3196.6,3196.5,1.89306946]
[1765451338155,6.20603359,3196.6,3196.5,1.89306946]
[1765451338557,6.20603359,3196.6,3196.5,2.90246946]
[1765451339057,6.20603359,3196.6,3196.5,0.81656946]
[1765451339252,6.20603359,3196.6,3196.5,1.79476946]
[1765451340970,2.99823359,3196.6,3196.5,1.79476946]
[1765451341168,6.20603359,3196.6,3196.5,2.80926946]
[1765451341370,6.20603359,3196.6,3196.5,1.79476946]
[1765451341669,6.20603359,3196.6,3196.5,2.80926946]
[1765451346270,6.20603359,3196.6,3196.5,1.79476946]
[1765451347176,6.20603359,3196.6,3196.5,2.80926946]
[1765451347375,6.20603359,3196.6,3196.5,0.15936946]
[1765451347676,9.89803359,3196.6,3196.2,0.00468647]
[1765451347977,1.11913359,3196.3,3196.2,0.00468647]
[1765451348676,1.12219758,3196.3,3196.2,0.00853595]
[1765451349676,1.12219758,3196.3,3196.2,0.16495595]
[1765451350078,0.00306399,3196.3,3196.2,0.16495595]
[1765451350279,1.12219758,3196.3,3196.2,2.15765595]
[1765451350879,0.00306399,3196.3,3196.2,2.15765595]
[1765451353971,3.21086399,3196.3,3196.2,2.15765595]
[1765451354171,3.21086399,3196.3,3196.2,0.16495595]
[1765451354378,3.21086399,3196.3,3196.2,4.08794547]
[1765451354777,3.21086399,3196.3,3196.2,0.16495595]
[1765451357291,6.90286399,3196.3,3196.2,0.16495595]
[1765451360883,6.90286399,3196.3,3195.5,0.15645]
[1765451361089,4.32693359,3195.6,3195.5,0.15645]
[1765451361281,4.32693359,3195.6,3195.5,0.74235]
[1765451361886,4.32693359,3195.6,3195.5,0.74554227]
[1765451363383,5.44606718,3195.6,3195.2,0.00469403]
[1765451363584,1.11913359,3195.3,3195.2,0.00469403]
[1765451364191,1.11913359,3195.3,3194.7,0.15649]
[1765451364387,3.2078,3195.1,3195.0,0.63544973]
[1765451367492,3.2078,3195.1,3195.0,0.00354973]
[1765451374093,3.2078,3195.1,3195.0,0.16002973]
[1765451376704,4.35697774,3195.1,3195.0,0.16002973]
[1765451380592,3.2078,3195.1,3195.0,0.16002973]
[1765451380998,3.2078,3195.1,3195.0,6.16002973]
[1765451381504,4.6775,3195.1,3195.0,6.16002973]
[1765451382308,1.14365214,3195.1,3195.0,6.16002973]
[1765451383010,0.43940214,3195.1,3195.0,6.16002973]
[1765451383208,0.03913214,3195.1,3195.0,6.16002973]
[1765451383400,2.14e-06,3195.1,3195.0,6.16002973]
[1765451383904,2.14e-06,3195.1,3195.0,7.30920747]
[1765451384706,3.2078,3195.6,3195.5,0.15645]
[1765451393012,3.2078,3195.6,3195.0,0.00354973]
[1765451393204,1.14917774,3195.2,3195.1,0.15647]
[1765451394310,1.14917774,3195.4,3195.3,0.15646]
[1765451395109,4.35697774,3195.6,3195.5,0.15645]
[1765451395511,3.2078,3195.6,3195.5,0.15645]
[1765451395813,4.35697774,3195.6,3195.5,0.15645]
[1765451398518,1.14917774,3195.6,3195.5,0.15645]
[1765451399316,3.2078,3195.7,3195.6,0.15645]
[1765451399614,4.35697774,3195.7,3195.6,0.15645]
[1765451401513,11.50615548,3195.7,3195.0,0.00354973]
[1765451401713,5.50615548,3195.1,3195.0,0.00354973]
[1765451402416,4.35697774,3195.1,3195.0,0.00354973]
[1765451403117,4.35697774,3195.1,3195.0,0.16002973]
[1765451410428,5.50615548,3195.1,3195.0,0.16002973]
[1765451412030,3.2078,3195.1,3195.0,0.16002973]
[1765451412231,4.35697774,3195.1,3195.0,0.16002973]
[1765451414124,3.2078,3195.1,3195.0,0.60872973]
[1765451414625,4.35697774,3195.1,3195.0,0.60872973]
[1765451420133,1.4985,3195.4,3195.3,0.15646]
[1765451420439,1.4985,3195.4,3195.3,1.30563774]
[1765451421335,1.4985,3195.4,3195.3,7.30563774]
[1765451423335,1.4985,3195.4,3195.3,6.15646]
[1765451425231,0.49934203,3195.4,3195.3,0.15646]
[1765451425433,0.00469403,3195.9,3195.8,0.15644]
[1765451433446,0.00469403,3195.9,3195.8,1.30561774]
[1765451433640,1.49341626,3196.2,3196.1,0.15642]
[1765451433845,1.49341626,3196.2,3196.1,4.51339774]
[1765451434044,0.00306399,3196.3,3196.2,0.15642]
[1765451436751,1.15224173,3196.3,3196.2,0.15642]
[1765451437154,7.15224173,3196.3,3195.7,3.2078]
[1765451437355,1.14917774,3195.8,3195.7,3.36424]
[1765451438253,1.14917774,3196.0,3195.9,0.15643]
[1765451438644,1.5165,3196.1,3196.0,0.15643]
[1765451441155,1.11966697,3196.2,3196.0,0.15643]
[1765451441349,1.11966697,3196.2,3196.1,0.15642]
[1765451444060,4.32746697,3196.2,3196.1,0.15642]
[1765451447155,3.2078,3196.2,3196.1,0.15642]
[1765451447360,4.32746697,3196.2,3196.1,0.15642]
[1765451449267,3.2078,3196.2,3196.1,0.15642]
[1765451449771,0.00306399,3196.3,3196.0,1.1268]
[1765451449772,0.00306399,3196.3,3196.2,0.15642]
[1765451450673,0.00306399,3196.3,3196.2,4.06149141]
[1765451451375,0.00306399,3196.3,3196.2,0.15642]
[1765451452974,0.00306399,3196.3,3196.2,3.36422]
[1765451459279,0.00469403,3196.6,3196.5,0.6869]
[1765451459679,0.00469403,3196.6,3196.5,0.8433]
[1765451460077,0.00469403,3196.6,3196.5,3.2408]
[1765451460275,5.5592,3197.4,3197.3,2.3975]
[1765451460474,4.4149,3197.4,3197.3,2.3975]
[1765451460679,5.5592,3197.4,3197.3,2.3975]
[1765451461274,5.56219943,3197.4,3197.3,2.40015043]
[1765451461582,5.56219943,3197.4,3197.3,2.55651043]
[1765451464178,5.56219943,3197.4,3197.3,1.33691043]
[1765451464480,5.56219943,3197.4,3197.3,0.15901043]
[1765451465282,5.56219943,3197.4,3197.3,1.33691043]
[1765451466783,5.56219943,3197.4,3197.3,2.74061043]
[1765451467474,5.56219943,3197.4,3197.3,1.33691043]
[1765451467878,5.56219943,3197.4,3197.3,0.15901043]
[1765451468683,5.56219943,3197.4,3197.3,1.47651043]
[1765451469984,5.56219943,3197.4,3197.3,0.15901043]
[1765451471384,5.56219943,3197.4,3196.8,0.15639]
[1765451471385,2.661,3196.9,3196.8,0.15639]
[1765451471583,6.98846697,3196.9,3196.8,0.15639]
[1765451472281,6.98846697,3196.9,3196.8,0.15920558]
[1765451478291,6.98846697,3196.9,3196.5,0.00469403]
[1765451478292,2.2792,3196.6,3196.5,0.00469403]
[1765451478590,3.39886697,3196.6,3196.5,0.00469403]
[1765451479490,3.39886697,3196.6,3196.5,0.00776009]
[1765451487497,3.2078,3196.9,3196.8,1.1204]
[1765451487697,4.8342,3196.9,3196.8,2.3068]
[1765451488000,4.8342,3196.9,3196.7,0.15639]
[1765451488001,1.6264,3196.8,3196.7,0.15639]
[1765451488593,1.6264,3196.8,3196.7,1.27679]
[1765451488799,1.6264,3196.8,3196.7,0.15639]
[1765451491701,1.6264,3196.8,3196.7,2.46319]
[1765451492301,1.6264,3196.8,3196.7,1.27679]
[1765451493002,1.6264,3196.8,3196.7,2.46319]
[1765451493604,1.6264,3196.8,3196.7,1.27679]
[1765451493800,1.6264,3196.8,3196.7,0.15639]
[1765451494001,1.6264,3196.8,3196.7,2.46319]
[1765451494699,1.6264,3196.8,3196.7,1.27679]
[1765451495298,1.6264,3196.8,3196.7,0.15639]
[1765451496601,1.6264,3196.8,3196.7,1.27679]
[1765451497099,1.6264,3196.8,3196.7,0.15639]
[1765451499107,1.6264,3196.8,3196.7,1.13289]
[1765451499308,1.6264,3196.8,3196.7,0.15639]
[1765451500713,2.77442541,3196.8,3196.7,0.15639]
[1765451505709,1.96122541,3196.8,3196.7,2.01789]
[1765451506110,1.14802541,3196.8,3196.7,2.01789]
[1765451506314,1.30072541,3196.8,3196.7,2.01789]
[1765451508214,0.1527,3196.8,3196.7,2.01789]
[1765451508415,1.30072541,3196.8,3196.7,2.01789]
[1765451509116,1.39412541,3196.8,3196.7,1.13289]
[1765451510416,1.39412541,3196.8,3196.7,0.15639]
[1765451515720,1.39412541,3196.8,3196.7,2.01789]
[1765451516032,1.30072541,3196.8,3196.7,2.01789]
[1765451516423,1.30072541,3196.8,3196.7,1.13289]
[1765451517933,1.30072541,3196.8,3196.7,0.15639]
[1765451518828,1.14802541,3196.8,3196.5,0.70956009]
[1765451519034,1.14802541,3196.6,3196.5,0.70956009]
[1765451521231,1.14802541,3196.6,3196.5,0.00306606]
[1765451521435,2.29605082,3196.6,3196.0,1.1268]
[1765451521635,1.8051,3195.8,3195.7,7.45725052]
[1765451521831,2.95312541,3195.8,3195.7,1.8615]
[1765451522233,2.95312541,3195.8,3195.7,0.9765]
[1765451522440,2.95312541,3195.8,3195.7,0.97979062]
[1765451522638,2.95312541,3195.8,3195.7,1.13623062]
[1765451523532,2.95312541,3195.8,3195.7,0.15973062]
[1765451523733,2.95312541,3195.8,3195.7,1.13623062]
[1765451524032,2.95312541,3195.8,3195.7,2.02123062]
[1765451524236,2.95312541,3195.8,3195.7,1.13623062]
[1765451525835,6.16092541,3195.8,3195.7,1.13623062]
[1765451526335,6.16092541,3195.8,3195.7,0.15973062]
[1765451526635,1.7181,3195.5,3195.4,0.00315958]
[1765451526839,3.16952541,3195.5,3195.4,0.00315958]
[1765451527634,3.16952541,3195.5,3195.4,0.00670543]
[1765451528034,2.86612541,3195.5,3195.4,0.00670543]
[1765451528737,1.14802541,3195.5,3195.4,1.75120543]
[1765451528944,2.02022541,3195.5,3195.4,1.75120543]
[1765451529241,1.14802541,3195.5,3195.4,1.75120543]
[1765451529441,2.02022541,3195.5,3195.4,1.75120543]
[1765451529641,2.02022541,3195.5,3195.4,1.90766543]
[1765451530141,2.86612541,3195.5,3195.4,1.90766543]
[1765451530842,2.86612541,3195.5,3195.4,1.03466543]
[1765451531943,2.86612541,3195.5,3195.4,1.90766543]
[1765451532333,2.86612541,3195.5,3195.4,1.03466543]
[1765451533347,2.86612541,3195.5,3195.4,1.90766543]
[1765451533846,2.86612541,3195.5,3195.4,1.03466543]
[1765451535148,2.86612541,3195.5,3195.4,1.90766543]
[1765451536047,2.86612541,3195.5,3195.4,1.03466543]
[1765451536446,2.86612541,3195.5,3195.4,1.90766543]
[1765451540449,2.02022541,3195.5,3195.4,1.90766543]
[1765451541752,1.14802541,3195.5,3195.4,1.90766543]
[1765451543756,1.94402541,3195.5,3195.4,1.90766543]
[1765451544657,2.72562541,3195.5,3195.4,1.90766543]
[1765451544950,1.14802541,3195.5,3195.4,1.90766543]
[1765451545157,3.21249403,3196.1,3196.0,2.1417]
[1765451545351,1.15271944,3196.1,3196.0,2.1417]
[1765451546250,2.73031944,3196.1,3196.0,0.4853]
[1765451546453,1.5776,3195.9,3195.8,5.02064]
[1765451546766,2.72562541,3195.9,3195.8,5.02064]
[1765451547257,1.94402541,3195.9,3195.8,5.02064]
[1765451550254,2.72562541,3195.9,3195.8,0.97104]
[1765451550455,2.72562541,3195.9,3195.8,0.15644]
[1765451551050,1.5776,3195.9,3195.8,0.97104]
[1765451551357,1.5776,3195.9,3195.8,1.81284]
[1765451553458,1.5776,3195.9,3195.8,0.97104]